Cogmind - Beta 12 X2 @@@ ROGUE MODE // 2022.09.03 @ 09:58:20 Player: LU-1G1 Result: Destroyed by S-10 Pest with Light Assault Rifle Performance ------------- Evolutions (0) 0 Regions Visited (2) 400 Robots Destroyed (28) 140 Value Destroyed (622) 622 Prototype IDs (3) 60 Alien Tech Used (0) 0 Bonus (0) 0 TOTAL SCORE: 1222 Bonus ------- None Cogmind --------- Core Integrity 0/250 Matter 271/300 Energy 125/125 System Corruption 0% Temperature Cool (0) Movement Treading (320) Ox2 Location -10/Mines Parts ------- > --- POWER (1) -------- Light Ion Engine > --- PROPULSION (2) --- Light Treads Light Treads > --- UTILITY (2) ------ Huge Storage Unit > --- WEAPON (2) ------- Light Assault Rifle Heavy Assault Rifle > --- INVENTORY (25) --- Light Ion Engine Light Nuclear Core Light Treads Light Treads Light Treads Aluminum Leg Aluminum Leg Wheel Compact Wheel Large Storage Unit High-capacity Matter Pod (24) Experimental Sensor Array Medium Laser Assault Rifle Light Assault Rifle Heavy Assault Rifle Peak State ------------ > --- POWER ------------ Light Ion Engine > --- PROPULSION ------- Light Treads Light Treads > --- UTILITY ---------- Huge Storage Unit Experimental Sensor Array > --- WEAPON ----------- Light Assault Rifle Heavy Assault Rifle > --- INVENTORY -------- Light Ion Engine Light Nuclear Core Light Treads Light Treads Light Treads Light Treads Aluminum Leg Aluminum Leg Wheel Compact Wheel Large Storage Unit High-capacity Matter Pod Seismic Detector Medium Laser Assault Rifle Light Assault Rifle Heavy Assault Rifle [Rating: 18] Favorites ----------- Power Light Ion Engine Engine Light Ion Engine Propulsion Light Treads Treads Light Treads Utility Seismic Detector Device Seismic Detector Storage Huge Storage Unit Weapon Heavy Assault Rifle Ballistic Gun Heavy Assault Rifle Build | -11 -10 -10 ------- Run | Scr Mat Min Slots Evolved . | . . . Power . | . . . Propulsion . | . . . Utility . | . . . Weapon . | . . . Parts Attached 19 | 7 8 4 Power 3 | 1 2 . Engine 3 | 1 2 . Core . | . . . Reactor . | . . . Propulsion 4 | 2 . 2 Treads 4 | 2 . 2 Leg . | . . . Wheel . | . . . Hover . | . . . Flight . | . . . Utility 6 | 2 2 2 Device 3 | 1 . 2 Storage 3 | 1 2 . Processor . | . . . Hackware . | . . . Protection . | . . . Artifact . | . . . Weapon 6 | 2 4 . Energy Gun . | . . . Energy Cannon . | . . . Ballistic Gun 6 | 2 4 . Ballistic Cannon . | . . . Launcher . | . . . Special Weapon . | . . . Impact Weapon . | . . . Slashing Weapon . | . . . Piercing Weapon . | . . . Special Melee Weapon . | . . . Unidentified Prototypes 1 | . . 1 Parts Lost 6 | . 3 3 Power 1 | . 1 . Propulsion 2 | . . 2 Utility 1 | . . 1 Weapon 2 | . 2 . Highest Loss Streak 2 | . 2 1 To Critical Strikes . | . . . Average Slot Usage (%) 99 | . 99 99 Engine 13 | . 13 14 Treads 28 | . 28 28 Device 13 | . 14 13 Storage 14 | . 14 14 Ballistic Gun 27 | . 27 28 Naked Turns . | . . . Heaviest Build 88 | 12 88 88 Greatest Support 40 | 40 40 40 Greatest Overweight (x) 2 | . 2 2 Average Overweight (x) . | . . 2 Largest Inventory Capacity 25 | 8 25 25 Average Capacity 17 | 6 16 25 Most Carried 17 | 6 17 17 Average Carried 11 | 2 11 16 Final Capacity 25 | 8 25 25 Final Carried 17 | 6 17 16 Class Distribution -------------------- 100% | Mutant Dominant Class ---------------- Mutant | -10/Materials Mutant | -10/Mines Resources | -11 -10 -10 ----------- Run | Scr Mat Min Matter Collected 742 | 290 322 130 Remotely . | . . . Salvage Created 984 | 88 698 198 Parts 62 | 6 36 20 Haulers Intercepted 1 | . 1 . Recyclers Shooed . | . . . Parts Field Recycled . | . . . Retrieved Matter . | . . . Parts Self-Destructed . | . . . Prevented . | . . . Kills | -11 -10 -10 ------- Run | Scr Mat Min Combat Hostiles Destroyed 21 | . 11 10 Guns 21 | . 11 10 Classes Destroyed 6 | 2 3 1 Builder 2 | . 2 . Tunneler 2 | 1 1 . Hauler 1 | . 1 . Recycler 2 | 1 1 . Swarmer 8 | . . 8 Grunt 13 | . 11 2 Best Kill Streak 5 | 1 4 5 Combat Bots Only 5 | . 3 5 Max Kills in Single Turn 2 | 1 1 2 Gunslinging 1 | . . 1 Exploded . | . . . Melee . | . . . Uniques/NPCs Destroyed . | . . . Combat | -11 -10 -10 -------- Run | Scr Mat Min Damage Taken 1244 | 5 667 572 Core 255 | 5 106 144 Absorbed by Shields . | . . . Core Remaining (%) 98 | 98 . . Volleys Fired 87 | 8 56 23 Largest 2 | 2 2 2 Hottest 46 | 40 46 43 Shots Fired 173 | 16 111 46 Gun 173 | 16 111 46 Cannon . | . . . Launcher . | . . . Special . | . . . Kinetic 173 | 16 111 46 Thermal . | . . . Explosive . | . . . Electromagnetic . | . . . Robot Hit Streak 13 | 4 8 13 Robot Miss Streak 4 | 2 4 2 Penetration Max . | . . . Secondary Targets 2 | . 1 1 Max Gunslinging Chain 1 | . 1 1 Shots Hit Robots 110 | 10 70 30 Core Hits 45 | 4 28 13 Critical Kills . | . . . Critical Parts Destroyed . | . . . Critical Strikes . | . . . Melee Attacks . | . . . Impact . | . . . Slashing . | . . . Piercing . | . . . Sneak Attacks . | . . . Combat Hostiles . | . . . Follow-up Attacks . | . . . Damage Inflicted 1474 | 120 996 358 Guns 1444 | 108 986 350 Cannons . | . . . Explosions . | . . . Melee . | . . . Ramming 30 | 12 10 8 Kinetic 1444 | 108 986 350 Thermal . | . . . Explosive . | . . . Electromagnetic . | . . . Impact . | . . . Slashing . | . . . Piercing . | . . . Highest Corruption . | . . . Average Corruption . | . . . Corruption Purged . | . . . Corruption Blocked . | . . . Overload Shots . | . . . Overflow Damage . | . . . Projectiles . | . . . Explosions . | . . . Melee . | . . . Knockbacks . | . . . Impact . | . . . Kinetic . | . . . Secondary . | . . . Self-Inflicted Damage 5 | 5 . . Shots . | . . . Rammed 8 | 3 1 4 Targets Rammed 8 | 3 1 4 Kicked . | . . . Crushed . | . . . Highest Temperature 22 | . 22 22 Average Temperature 4 | . 4 4 Received Heat Transfer 468 | . 399 69 Siege Activations . | . . . Robots Corrupted . | . . . Combat Hostiles . | . . . Parts Fried . | . . . Impact Corruptions . | . . . Robots Melted . | . . . Combat Hostiles . | . . . Parts Melted . | . . . Heat Transferred . | . . . Parts Sabotaged . | . . . Parts Stolen . | . . . Parts Stripped . | . . . Power Chain Reactions . | . . . Missiles Intercepted . | . . . Alert | -11 -10 -10 ------- Run | Scr Mat Min Peak Influence 348 | 10 348 296 Initial 76 | . 6 76 Average 121 | 3 143 158 Maximum Alert Level 1 | . 1 1 Low Security (%) 90 | 100 84 91 Level 1 9 | . 15 8 Level 2 . | . . . Level 3 . | . . . Level 4 . | . . . Level 5 . | . . . High Security . | . . . Max Security . | . . . Squads Dispatched 2 | . 2 . Investigation 1 | . 1 . Extermination . | . . . Reinforcement 1 | . 1 . Assault . | . . . Garrison . | . . . Intercept . | . . . Searches Triggered . | . . . Construction Impeded . | . . . Haulers Reinforced . | . . . Active Scanning Responses . | . . . Cargo Convoy Interrupts . | . . . Stealth | -11 -10 -10 --------- Run | Scr Mat Min Distress Signals 1 | . 1 . Communications Jammed . | . . . Distress Signals . | . . . Times Spotted 32 | . 19 13 Peak Tracking Total 5 | . 5 5 Tactical Retreats 2 | . 2 . Traps | -11 -10 -10 ------- Run | Scr Mat Min Traps Triggered . | . . . Indirectly . | . . . Trap Hack Attempts . | . . . Triggered . | . . . Disarmed . | . . . Reprogrammed . | . . . Reused . | . . . Traps Extracted . | . . . Installed . | . . . Triggered . | . . . Machines | -11 -10 -10 ---------- Run | Scr Mat Min Machines Disabled 1 | . 1 . Max in Single Turn 1 | . 1 . Machines Sabotaged . | . . . Overloaded Fab Kills . | . . . Hacking | -11 -10 -10 --------- Run | Scr Mat Min Machines Accessed 2 | . 2 . Terminals 2 | . 2 . Fabricators . | . . . Repair Stations . | . . . Recycling Units . | . . . Scanalyzers . | . . . Garrison Access . | . . . Total Hacks 8 | . 8 . Successful 2 | . 2 . Failed 6 | . 6 . Catastrophic 1 | . 1 . Database Lockouts . | . . . Manual 7 | . 7 . Terminals 8 | . 8 . Fabricators . | . . . Repair Stations . | . . . Recycling Units . | . . . Scanalyzers . | . . . Garrison Access . | . . . Terminal Hacks 2 | . 2 . Robot Analysis 1 | . 1 . Prototype ID Bank 1 | . 1 . Fabricator Hacks . | . . . Repair Station Hacks . | . . . Recycling Unit Hacks . | . . . Scanalyzer . | . . . Garrison Access Hacks . | . . . Unauthorized Hacks . | . . . Terminals . | . . . Fabricators . | . . . Repair Stations . | . . . Recycling Units . | . . . Scanalyzers . | . . . Garrison Access . | . . . Data Cores Recovered . | . . . Used . | . . . Hacking Detections 2 | . 2 . Full Trace Events 1 | . 1 . Feedback Events . | . . . Feedback Blocked . | . . . Robot Schematics Acquired . | . . . Robots Built . | . . . Authchips . | . . . Time . | . . . Total Robot Build Rating . | . . . Part Schematics Acquired . | . . . Parts Built . | . . . Authchips . | . . . Time . | . . . Total Part Build Rating . | . . . Parts Repaired . | . . . Time . | . . . Parts Recycled . | . . . Recycled Matter . | . . . Retrieved Matter . | . . . Retrieved Components . | . . . Parts Scanalyzed . | . . . Part Schematics Acquired . | . . . Parts Damaged . | . . . Bothacking | -11 -10 -10 ------------ Run | Scr Mat Min Used RIF Installer . | . . . Robots Hacked . | . . . Non-combat . | . . . Combat . | . . . Robot Hacks Applied . | . . . Relay Couplers Released . | . . . Fabnet Peak Effective % . | . . . Robots Rewired . | . . . Allies Hacked . | . . . Hacks Repelled . | . . . Allies | -11 -10 -10 -------- Run | Scr Mat Min Total Allies . | . . . Largest Group . | . . . Highest-Rated Group . | . . . Highest-Rated Ally . | . . . Total Orders . | . . . Ally Attacks . | . . . Total Damage . | . . . Kills . | . . . Allies Corrupted . | . . . Allies Melted . | . . . Intel | -11 -10 -10 ------- Run | Scr Mat Min Robot Analysis Total 1 | . 1 . Derelict Logs Recovered . | . . . Drone Launches . | . . . Drone Recoveries . | . . . Exploration | -11 -10 -10 ------------- Run | Scr Mat Min Turns Passed 1426 | 282 586 558 Spaces Moved 623 | 272 202 149 Core 176 | 176 . . Treads 447 | 96 202 149 Legs . | . . . Wheels . | . . . Hover . | . . . Flight . | . . . Fastest Speed 50 | 50 160 320 Average Speed 177 | 88 190 320 Slowest Speed 320 | 160 320 320 Overloaded Moves . | . . . Propulsion Burnouts . | . . . Robots Hopped . | . . . Cave-ins Triggered . | . . . Exploration Rate (%) 29 | 8 45 34 Regions Visited 2 Branch Regions 1 Pre-discovered Areas . | . . . Known Exits Taken . | . . . Unknown Exits Taken 2 | 1 1 . Scrap Searched 1 | . . 1 Spaces Dug . | . . . Terrain Destroyed . | . . . Melee . | . . . Projectile . | . . . AOE . | . . . Terrain Rammed . | . . . Walls Destroyed . | . . . Machines Disabled . | . . . Actions | -11 -10 -10 --------- Run | Scr Mat Min Total 775 | 295 299 181 Wait 16 | . 16 . Move 621 | 271 201 149 Hop . | . . . Pick Up 20 | 6 13 1 Fast Attach 7 | 7 . . Attach 5 | . 3 2 Detach . | . . . Swap 7 | . 5 2 Drop 4 | . 4 . Fire 87 | 8 56 23 Melee . | . . . Ram 3 | 3 . . Kick . | . . . Crush 5 | . 1 4 Escape Stasis . | . . . Rewire . | . . . Trap . | . . . Miscellaneous . | . . . Route ------- -11/Scrapyard -10/Materials (discovered 2 exits: [*Mat] / [*Min]) -10/Mines (discovered 1 exit: [*Mat]) History --------- Turn | Location | Event 99 | -11/Scrapyard | Discovered new exit (range 15) 283 | -11/Scrapyard | Entered Materials 303 | -10/Materials | Build established: Mutant 398 | -10/Materials | Discovered new exit (range 13) 805 | -10/Materials | Discovered new exit (range 15) 869 | -10/Materials | Entered Mines 878 | -10/Mines | Core integrity fell below 50% 1115 | -10/Mines | Found a damaged Exp. Sensor Array with a note attached 1122 | -10/Mines | Found Prototype Device 1123 | -10/Mines | Identified Exp. Sensor Array 1235 | -10/Mines | Core integrity fell below 20% 1388 | -10/Mines | Discovered new exit (range 15) 1414 | -10/Mines | Assembled infested the area 1427 | -10/Mines | Destroyed by S-10 Pest with Light Assault Rifle Last Messages --------------- 01221_ S-10 Pest destroyed. 01222_ Lgt. Treads destroyed. 01230_ S-10 Pest destroyed. 01241_ G-47 Trooper destroyed. 01244_ G-34 Mercenary destroyed. 01247_ Acquired 10 matter. 01250_ Acquired 16 matter. 01253_ Acquired 46 matter. 01271_ K-01 Serf collects debris. 01308_ Slammed into U-05 Engineer. 01311_ Slammed into R-06 Scavenger. 01321_ Searching scrap... 01321_ Found Com. Wheel. 01321_ Found Med. Storage Unit. 01321_ Found 14 Matter. 01322_ Acquired 14 matter. 01388_ EXIT=FOUND 01414_ ALERT: Infestation in the mines, dispatching Demolisher response squad. 01417_ Seismic Detector destroyed. Map ----- +----------------------------------------------------+ | | | ????????????????????????????????? | | ????????????????????????????????? | | ????????????????????????????????? | | ????????????????????????????????? | | ????????????????????????????????? | | ????????????????????????????????? | | ????????????????????????????????? | | ????????????????????????????????? | | ????????????????????????????????? | | ????????????????????????????????? | | ????#???????????????????????????? | | ????# ??????????????????????????? | | ????# ??????????????????????????? | | ????#s ?????????????????????????? | | ????# ?????????????????????????? | | ????#s ?????????????????????????? | | ????# s?????????????????????????? | | ????# ?????????????????????????? | | ????# #####????????????????????? | | ???## ##???????????????????? | | ??## #???????????????????? | | ??# < ##??????????????????? | | ??# ##?????????????????? | | ??# #?????????????????? | | ??# @ #?????????????????? | | ??# #?????????????????? | | ??# #?????????????????? | | ??## ## #????????????????? | | ???## ##?# #???????????????? | | ????## #??? #???????????????? | | ?????# #???? ##???????????????? | | ?????#r #?????##????????????????? | | ?????# #???????????????????????? | | ?????# #???????????????????????? | | ?????# #???????????????????????? | | ?????# #???????????????????????? | | ?????# #???????????????????????? | | ?????# #???????????????????????? | | ?????# #???????????????????????? | | ?????# #???????????????????????? | | ?????# #####???????????????????? | | ?????# #???????????????????? | | ?????# #???????????????##### | | ?????##### #????##????????## # | | ????????## #???# ????????# | | ???????## #??? ???????## | | ??????## #??? ??????## # | | ??????# #??? ???#### #? | | ??????# ##???# ??## #?? | +----------------------------------------------------+ Best States ------------- Heat Dissipation 25 Energy Generation 10 Energy Capacity 125 Matter Stores 300 Matter Capacity 300 Sight Range 16 Terrain Scan Density 10 Evasion (%) 50 Recoil Reduction 2 Item Schematics ----------------- None Robot Schematics ------------------ None Fabricated ------------ Nothing Alien Tech Used ----------------- None Achievements -------------- None Challenges ------------ None Game ------ Seed SchematicBiocellBattery Manual? 0 Play Time 00:09:43 Cumulative 537.2 hours Start 2022.09.03 @ 08:46:23 End 2022.09.03 @ 09:58:20 Sessions 8 Manual Loads 0 Difficulty Rogue Special Mode None Game No. 525 Rogue 310 Adventurer 112 Explorer 103 Win Type - Total 35 Types 23/0/8/2/0/0/1/1/0 Lore% 87 Gallery% 92 Achievement% 80 Wizard Run 0 Options --------- ASCII 0 Keyboard 0 Movement Numpad Keybinds 1 Fullscreen 2 Font 18/SmallcapsGlow Map View 76x50 Tactical HUD 1 Map Filters NONE Filters NONE Steam 1 RUN: 7c2e47e8-ad20-41ee-b175-0b615f615a4e